[Event "Early-Titled-Tuesday-Blitz-May-28-2024"]
[Site "Chess.com"]
[Date "2024.05.28"]
[Round "4"]
[White "ClauAmura"]
[Black "Alexchess1984"]
[Result "1/2-1/2"]
[WhiteElo "2419"]
[BlackElo "2614"]
[TimeControl "180+1"]
[EndTime "8:40:37 PDT"]
[Termination "Game drawn by repetition"]

1. d4 {[%clk 0:03:00.9]} 1... e6 {[%clk 0:03:00.9]} 2. c4 {[%clk 0:03:00]} 2...
f5 {[%clk 0:02:59.9]} 3. Nc3 {[%clk 0:03:00]} 3... Nf6 {[%clk 0:02:59.5]} 4. e3
{[%clk 0:02:57]} 4... Bb4 {[%clk 0:02:57.7]} 5. Qc2 {[%clk 0:02:54.4]} 5... b6
{[%clk 0:02:56.3]} 6. Nf3 {[%clk 0:02:47.2]} 6... Bb7 {[%clk 0:02:55.6]} 7. Bd3
{[%clk 0:02:45]} 7... O-O {[%clk 0:02:50.9]} 8. Bd2 {[%clk 0:02:45.5]} 8... d6
{[%clk 0:02:40.5]} 9. a3 {[%clk 0:02:45.2]} 9... Bxc3 {[%clk 0:02:39.4]} 10.
Bxc3 {[%clk 0:02:45.8]} 10... Nbd7 {[%clk 0:02:38.9]} 11. b4 {[%clk 0:02:41.4]}
11... Qe8 {[%clk 0:02:27.3]} 12. Qe2 {[%clk 0:02:29.1]} 12... a5 {[%clk
0:02:19.8]} 13. bxa5 {[%clk 0:02:26]} 13... bxa5 {[%clk 0:02:19.8]} 14. Rb1
{[%clk 0:02:24.8]} 14... Be4 {[%clk 0:02:18.1]} 15. O-O {[%clk 0:02:10.4]} 15...
Qh5 {[%clk 0:02:06.1]} 16. Rb5 {[%clk 0:02:06.3]} 16... a4 {[%clk 0:01:44]} 17.
Nd2 {[%clk 0:02:02.7]} 17... Qg6 {[%clk 0:01:35.6]} 18. f3 {[%clk 0:01:51.6]}
18... Bxd3 {[%clk 0:01:33.6]} 19. Qxd3 {[%clk 0:01:51.4]} 19... c6 {[%clk
0:01:07.6]} 20. Rb7 {[%clk 0:01:48.5]} 20... c5 {[%clk 0:01:06]} 21. Rfb1 {[%clk
0:01:45.1]} 21... e5 {[%clk 0:00:54.7]} 22. d5 {[%clk 0:01:27.8]} 22... e4
{[%clk 0:00:52.8]} 23. Qe2 {[%clk 0:01:14.6]} 23... exf3 {[%clk 0:00:44.2]} 24.
Qxf3 {[%clk 0:01:14]} 24... Rae8 {[%clk 0:00:43.3]} 25. Qf4 {[%clk 0:01:07.1]}
25... Ne5 {[%clk 0:00:41.2]} 26. Bxe5 {[%clk 0:00:56.3]} 26... Rxe5 {[%clk
0:00:33.3]} 27. Ra7 {[%clk 0:00:49.1]} 27... h6 {[%clk 0:00:15.2]} 28. Rbb7
{[%clk 0:00:48.8]} 28... Nh5 {[%clk 0:00:15]} 29. Qf3 {[%clk 0:00:47.8]} 29...
Rfe8 {[%clk 0:00:15.2]} 30. Nf1 {[%clk 0:00:43.4]} 30... Qg5 {[%clk 0:00:13.3]}
31. Ng3 {[%clk 0:00:39.2]} 31... Rxe3 {[%clk 0:00:13]} 32. Nxh5 {[%clk
0:00:16.8]} 32... Re1+ {[%clk 0:00:12.7]} 33. Kf2 {[%clk 0:00:17.2]} 33... R8e2+
{[%clk 0:00:07.1]} 34. Qxe2 {[%clk 0:00:17.4]} 34... Rxe2+ {[%clk 0:00:07.1]}
35. Kxe2 {[%clk 0:00:18]} 35... Qxh5+ {[%clk 0:00:07.7]} 36. Kd3 {[%clk
0:00:16.9]} 36... Qd1+ {[%clk 0:00:07.1]} 37. Ke3 {[%clk 0:00:16]} 37... Qc1+
{[%clk 0:00:06.1]} 38. Kd3 {[%clk 0:00:16]} 38... Qxa3+ {[%clk 0:00:06.1]} 39.
Ke2 {[%clk 0:00:14.5]} 39... Qa2+ {[%clk 0:00:06.5]} 40. Kf1 {[%clk 0:00:14]}
40... Qa1+ {[%clk 0:00:06.3]} 41. Kf2 {[%clk 0:00:14.2]} 41... Qa2+ {[%clk
0:00:06.5]} 42. Kg3 {[%clk 0:00:14]} 42... Qa3+ {[%clk 0:00:06.4]} 43. Kf4
{[%clk 0:00:13.8]} 43... Qc1+ {[%clk 0:00:05.7]} 44. Kxf5 {[%clk 0:00:13.8]}
44... Qf1+ {[%clk 0:00:05]} 45. Ke6 {[%clk 0:00:14]} 45... Qf6+ {[%clk 0:00:05]}
46. Kd7 {[%clk 0:00:14.3]} 46... Kf7 {[%clk 0:00:05.5]} 47. Kc6+ {[%clk
0:00:13.9]} 47... Kg6 {[%clk 0:00:05.7]} 48. Rxa4 {[%clk 0:00:12.9]} 48... Kh5
{[%clk 0:00:06.6]} 49. Raa7 {[%clk 0:00:11.2]} 49... g5 {[%clk 0:00:07]} 50. Rd7
{[%clk 0:00:11.1]} 50... Qe5 {[%clk 0:00:07.3]} 51. Rxd6 {[%clk 0:00:11]} 51...
Qxh2 {[%clk 0:00:07.4]} 52. Rh7 {[%clk 0:00:11.5]} 52... Qxg2 {[%clk 0:00:07.8]}
53. Rhxh6+ {[%clk 0:00:11.7]} 53... Kg4 {[%clk 0:00:08.5]} 54. Rdg6 {[%clk
0:00:11.3]} 54... Qa2 {[%clk 0:00:08.7]} 55. d6 {[%clk 0:00:11.3]} 55... Qxc4
{[%clk 0:00:08.4]} 56. d7 {[%clk 0:00:11.5]} 56... Qe4+ {[%clk 0:00:08.8]} 57.
Kc7 {[%clk 0:00:11.9]} 57... Qe5+ {[%clk 0:00:09.1]} 58. Kc8 {[%clk 0:00:11.3]}
58... Qf5 {[%clk 0:00:09.2]} 59. Kc7 {[%clk 0:00:10.7]} 59... Qe5+ {[%clk
0:00:08.9]} 60. Kc8 {[%clk 0:00:11.2]} 60... Qf5 {[%clk 0:00:09.3]} 61. Kc7
{[%clk 0:00:11.6]} 61... Qe5+ {[%clk 0:00:09.6]} 1/2-1/2

[Event "Early-Titled-Tuesday-Blitz-May-28-2024"]
[Site "Chess.com"]
[Date "2024.05.28"]
[Round "4"]
[White "Keranke"]
[Black "Kunalm64"]
[Result "0-1"]
[WhiteElo "2889"]
[BlackElo "2671"]
[TimeControl "180+1"]
[EndTime "8:40:38 PDT"]
[Termination "Kunalm64 won by resignation"]

1. d4 {[%clk 0:02:52.3]} 1... Nf6 {[%clk 0:02:59.6]} 2. Bf4 {[%clk 0:02:51.6]}
2... b6 {[%clk 0:02:59]} 3. Nf3 {[%clk 0:02:50.8]} 3... Bb7 {[%clk 0:02:59.6]}
4. h3 {[%clk 0:02:51]} 4... d6 {[%clk 0:02:59.7]} 5. e3 {[%clk 0:02:51.2]} 5...
Nbd7 {[%clk 0:02:59.4]} 6. c3 {[%clk 0:02:51.3]} 6... g6 {[%clk 0:02:59.9]} 7.
Nbd2 {[%clk 0:02:51.1]} 7... Bg7 {[%clk 0:03:00.4]} 8. Bh2 {[%clk 0:02:51.8]}
8... O-O {[%clk 0:03:00.7]} 9. Bd3 {[%clk 0:02:52.3]} 9... Re8 {[%clk
0:03:01.1]} 10. O-O {[%clk 0:02:50.9]} 10... e5 {[%clk 0:03:01.4]} 11. dxe5
{[%clk 0:02:51]} 11... Nxe5 {[%clk 0:03:00.5]} 12. Nxe5 {[%clk 0:02:50.4]} 12...
dxe5 {[%clk 0:03:00.3]} 13. Bb5 {[%clk 0:02:50.2]} 13... Re7 {[%clk 0:02:49.7]}
14. Nf3 {[%clk 0:02:44.8]} 14... Ne4 {[%clk 0:02:48.1]} 15. a4 {[%clk 0:02:33]}
15... a6 {[%clk 0:02:44.8]} 16. Bc4 {[%clk 0:02:33]} 16... Rd7 {[%clk 0:02:38]}
17. Qe2 {[%clk 0:02:24.9]} 17... Nd2 {[%clk 0:02:16.7]} 18. Nxe5 {[%clk
0:02:17.7]} 18... Bxe5 {[%clk 0:02:15.4]} 19. Bxe5 {[%clk 0:02:17.4]} 19... Nxf1
{[%clk 0:02:14.6]} 20. Rxf1 {[%clk 0:02:11.7]} 20... Qg5 {[%clk 0:02:12.9]} 21.
f4 {[%clk 0:02:08.8]} 21... Qe7 {[%clk 0:02:10.8]} 22. Rf2 {[%clk 0:01:36]}
22... Rad8 {[%clk 0:02:03]} 23. Qc2 {[%clk 0:01:30.3]} 23... Bd5 {[%clk
0:01:40.4]} 24. Bxd5 {[%clk 0:01:19.4]} 24... Rxd5 {[%clk 0:01:40.2]} 25. e4
{[%clk 0:01:20.3]} 25... R5d7 {[%clk 0:01:26.6]} 26. b4 {[%clk 0:01:04.7]} 26...
f6 {[%clk 0:01:00.8]} 27. Bd4 {[%clk 0:01:04.5]} 27... c5 {[%clk 0:00:58.4]} 28.
bxc5 {[%clk 0:00:56.6]} 28... bxc5 {[%clk 0:00:58.9]} 29. Be3 {[%clk 0:00:57.3]}
29... Rd3 {[%clk 0:00:58.7]} 30. Re2 {[%clk 0:00:55]} 30... Qxe4 {[%clk
0:00:41.9]} 31. Bxc5 {[%clk 0:00:25.9]} 31... Rd1+ {[%clk 0:00:37.5]} 32. Kh2
{[%clk 0:00:26.1]} 32... Qxf4+ {[%clk 0:00:28.8]} 33. g3 {[%clk 0:00:26]} 33...
Qd2 {[%clk 0:00:16.5]} 34. Qb3+ {[%clk 0:00:23.8]} 34... Qd5 {[%clk 0:00:15.8]}
35. Qxd5+ {[%clk 0:00:22.9]} 35... R8xd5 {[%clk 0:00:15.3]} 36. Bd4 {[%clk
0:00:22.8]} 36... Kf7 {[%clk 0:00:15.4]} 37. Rb2 {[%clk 0:00:22.4]} 37... Rd6
{[%clk 0:00:08.5]} 38. Rb7+ {[%clk 0:00:20.6]} 38... Ke6 {[%clk 0:00:08.6]} 39.
Rxh7 {[%clk 0:00:20.3]} 39... Rd2+ {[%clk 0:00:08.7]} 40. Kg1 {[%clk 0:00:20.2]}
40... Ra2 {[%clk 0:00:08.8]} 41. Rg7 {[%clk 0:00:19]} 41... g5 {[%clk
0:00:08.4]} 42. g4 {[%clk 0:00:17.3]} 42... Rxa4 {[%clk 0:00:07.5]} 43. Kf2
{[%clk 0:00:14.7]} 43... Ra2+ {[%clk 0:00:05.8]} 44. Kg3 {[%clk 0:00:14.5]}
44... a5 {[%clk 0:00:05.7]} 45. h4 {[%clk 0:00:11.5]} 45... gxh4+ {[%clk
0:00:05.5]} 46. Kxh4 {[%clk 0:00:12.4]} 46... a4 {[%clk 0:00:05.8]} 47. Kh5
{[%clk 0:00:12.6]} 47... Rh2+ {[%clk 0:00:05.3]} 48. Kg6 {[%clk 0:00:12.8]}
48... Rg2 {[%clk 0:00:04.8]} 49. Kh5 {[%clk 0:00:12.2]} 49... Rd5+ {[%clk
0:00:04.9]} 50. Kh4 {[%clk 0:00:09.3]} 50... Rg5 {[%clk 0:00:05]} 51. Ra7 {[%clk
0:00:08]} 51... R2xg4+ {[%clk 0:00:04]} 52. Kh3 {[%clk 0:00:08.3]} 52... Rg3+
{[%clk 0:00:04.3]} 53. Kh2 {[%clk 0:00:07.8]} 53... Rg2+ {[%clk 0:00:04.5]} 54.
Kh3 {[%clk 0:00:07.9]} 54... R5g3+ {[%clk 0:00:04.8]} 55. Kh4 {[%clk 0:00:08.1]}
55... Rg7 {[%clk 0:00:05.4]} 56. Kh3 {[%clk 0:00:08.2]} 56... Rxa7 {[%clk
0:00:04.8]} 57. Kxg2 {[%clk 0:00:06.1]} 57... a3 {[%clk 0:00:04.7]} 0-1

[Event "Early-Titled-Tuesday-Blitz-May-28-2024"]
[Site "Chess.com"]
[Date "2024.05.28"]
[Round "4"]
[White "mind1mover"]
[Black "2Coaches1Profile"]
[Result "0-1"]
[WhiteElo "2823"]
[BlackElo "2592"]
[TimeControl "180+1"]
[EndTime "8:40:41 PDT"]
[Termination "2Coaches1Profile won by resignation"]

1. e4 {[%clk 0:03:00.9]} 1... Nf6 {[%clk 0:02:59.6]} 2. e5 {[%clk 0:02:58.2]}
2... Nd5 {[%clk 0:03:00]} 3. d4 {[%clk 0:02:59.1]} 3... d6 {[%clk 0:03:00.2]} 4.
Nf3 {[%clk 0:03:00]} 4... Nc6 {[%clk 0:03:00.6]} 5. e6 {[%clk 0:02:57.6]} 5...
fxe6 {[%clk 0:03:00.4]} 6. Bd3 {[%clk 0:02:54.9]} 6... Ndb4 {[%clk 0:02:45.2]}
7. Be2 {[%clk 0:02:35.6]} 7... e5 {[%clk 0:02:42]} 8. dxe5 {[%clk 0:02:29.8]}
8... Bf5 {[%clk 0:02:41.7]} 9. Na3 {[%clk 0:02:27.2]} 9... dxe5 {[%clk
0:02:41.1]} 10. O-O {[%clk 0:02:23.6]} 10... e4 {[%clk 0:02:27.5]} 11. Nh4
{[%clk 0:02:13.8]} 11... e6 {[%clk 0:02:27.4]} 12. Nxf5 {[%clk 0:02:08.1]} 12...
exf5 {[%clk 0:02:28.3]} 13. c3 {[%clk 0:02:06.1]} 13... Qxd1 {[%clk 0:02:14.6]}
14. Rxd1 {[%clk 0:02:07]} 14... Nd3 {[%clk 0:02:07.6]} 15. Nb5 {[%clk
0:02:03.3]} 15... O-O-O {[%clk 0:02:02.8]} 16. Bxd3 {[%clk 0:02:03.7]} 16...
exd3 {[%clk 0:01:53.7]} 17. Be3 {[%clk 0:02:01.3]} 17... Bd6 {[%clk 0:01:31.6]}
18. Nd4 {[%clk 0:01:49.2]} 18... f4 {[%clk 0:01:01.9]} 19. Nxc6 {[%clk
0:01:39.9]} 19... bxc6 {[%clk 0:01:02.8]} 20. Bd4 {[%clk 0:01:40.3]} 20... Rd7
{[%clk 0:00:57.9]} 21. c4 {[%clk 0:01:30.1]} 21... f3 {[%clk 0:00:54.3]} 22. g3
{[%clk 0:01:24.5]} 22... Bxg3 {[%clk 0:00:47.9]} 23. Bxa7 {[%clk 0:01:03.6]}
23... Bf4 {[%clk 0:00:44.1]} 24. Be3 {[%clk 0:01:02.9]} 24... Rf8 {[%clk
0:00:34.4]} 25. Rd2 {[%clk 0:01:00.7]} 25... Rf5 {[%clk 0:00:28.2]} 26. Rad1
{[%clk 0:00:54.1]} 26... Be5 {[%clk 0:00:13.8]} 27. b3 {[%clk 0:00:50.3]} 27...
Rf6 {[%clk 0:00:12.7]} 28. Rxd3 {[%clk 0:00:48.7]} 28... Rg6+ {[%clk 0:00:13.6]}
29. Kh1 {[%clk 0:00:35.9]} 29... Rxd3 {[%clk 0:00:13.7]} 30. Rxd3 {[%clk
0:00:36.8]} 30... Rg2 {[%clk 0:00:14.1]} 31. h3 {[%clk 0:00:32.6]} 31... Rh2+
{[%clk 0:00:12.4]} 32. Kg1 {[%clk 0:00:33.2]} 32... Rxh3 {[%clk 0:00:13]} 33. a4
{[%clk 0:00:19]} 33... Kb7 {[%clk 0:00:11.9]} 34. Rd7 {[%clk 0:00:10.7]} 34...
h5 {[%clk 0:00:06.9]} 35. Re7 {[%clk 0:00:06.5]} 35... Bh2+ {[%clk 0:00:06.8]}
36. Kf1 {[%clk 0:00:04.3]} 36... Bd6 {[%clk 0:00:05.9]} 37. Rxg7 {[%clk
0:00:04.1]} 37... Rh1+ {[%clk 0:00:05.5]} 38. Rg1 {[%clk 0:00:04.8]} 38... Rh2
{[%clk 0:00:05.7]} 39. Ke1 {[%clk 0:00:02.5]} 39... h4 {[%clk 0:00:05.3]} 40.
Kd2 {[%clk 0:00:02.3]} 40... h3 {[%clk 0:00:04.8]} 41. Kd3 {[%clk 0:00:02.9]}
41... Rg2 {[%clk 0:00:04.9]} 42. Rh1 {[%clk 0:00:01.3]} 42... h2 {[%clk
0:00:05.3]} 43. Ke4 {[%clk 0:00:02]} 43... Rg1 {[%clk 0:00:05.5]} 44. Rxh2
{[%clk 0:00:01.8]} 44... Bxh2 {[%clk 0:00:06.4]} 45. Kxf3 {[%clk 0:00:02.4]}
45... Rb1 {[%clk 0:00:07]} 46. Ke4 {[%clk 0:00:01.7]} 46... Rxb3 {[%clk
0:00:07.2]} 47. f4 {[%clk 0:00:02.4]} 47... Rb4 {[%clk 0:00:06.6]} 48. Kd3
{[%clk 0:00:02.7]} 48... Rxa4 {[%clk 0:00:06.6]} 49. f5 {[%clk 0:00:03.4]} 49...
Be5 {[%clk 0:00:06.4]} 50. Bc5 {[%clk 0:00:03.7]} 50... Ra8 {[%clk 0:00:05.4]}
51. Ke4 {[%clk 0:00:03.9]} 51... Bf6 {[%clk 0:00:05.8]} 52. Kf4 {[%clk
0:00:03.4]} 52... Rg8 {[%clk 0:00:05.8]} 53. Be3 {[%clk 0:00:03.4]} 53... Bg5+
{[%clk 0:00:05.4]} 54. Ke4 {[%clk 0:00:04]} 54... Bxe3 {[%clk 0:00:06.3]} 55.
Kxe3 {[%clk 0:00:04.9]} 55... Rf8 {[%clk 0:00:06.3]} 56. Kf4 {[%clk 0:00:05.5]}
56... Kb6 {[%clk 0:00:06.9]} 57. Ke5 {[%clk 0:00:06.4]} 57... Kc5 {[%clk
0:00:07.4]} 58. Ke6 {[%clk 0:00:07.3]} 58... Kxc4 {[%clk 0:00:07.5]} 59. f6
{[%clk 0:00:08.2]} 59... Rxf6+ {[%clk 0:00:07.6]} 60. Kxf6 {[%clk 0:00:09.1]}
60... Kd5 {[%clk 0:00:08]} 61. Kf5 {[%clk 0:00:09.5]} 61... c5 {[%clk
0:00:08.9]} 62. Kf4 {[%clk 0:00:10.2]} 62... Kd4 {[%clk 0:00:09.8]} 63. Kf3
{[%clk 0:00:10.8]} 63... Kd3 {[%clk 0:00:10.4]} 64. Kf2 {[%clk 0:00:11.4]} 64...
Kd2 {[%clk 0:00:10.8]} 65. Kf3 {[%clk 0:00:12.1]} 65... c4 {[%clk 0:00:11.7]}
66. Ke4 {[%clk 0:00:13]} 66... c3 {[%clk 0:00:12.5]} 67. Kd4 {[%clk 0:00:13.9]}
67... c2 {[%clk 0:00:13.4]} 68. Kd5 {[%clk 0:00:14.8]} 68... c1=Q {[%clk
0:00:13.9]} 69. Ke6 {[%clk 0:00:15.7]} 69... c5 {[%clk 0:00:14.6]} 0-1

[Event "Early-Titled-Tuesday-Blitz-May-28-2024"]
[Site "Chess.com"]
[Date "2024.05.28"]
[Round "4"]
[White "nabukatnezarr"]
[Black "LionelMessiFCB"]
[Result "1-0"]
[WhiteElo "2671"]
[BlackElo "2491"]
[TimeControl "180+1"]
[EndTime "8:40:41 PDT"]
[Termination "nabukatnezarr won by resignation"]

1. b3 {[%clk 0:03:00.9]} 1... e5 {[%clk 0:02:58.7]} 2. Bb2 {[%clk 0:03:01.8]}
2... Nc6 {[%clk 0:02:58.9]} 3. e3 {[%clk 0:03:02.3]} 3... Nf6 {[%clk 0:02:58.9]}
4. Bb5 {[%clk 0:03:02.5]} 4... e4 {[%clk 0:02:57.2]} 5. d3 {[%clk 0:02:46.6]}
5... a6 {[%clk 0:02:54.1]} 6. Bxc6 {[%clk 0:02:34.5]} 6... dxc6 {[%clk 0:02:55]}
7. dxe4 {[%clk 0:02:16.9]} 7... Qxd1+ {[%clk 0:02:52.9]} 8. Kxd1 {[%clk
0:02:17.8]} 8... Nxe4 {[%clk 0:02:52.7]} 9. Ke2 {[%clk 0:02:14.5]} 9... f6
{[%clk 0:02:48.2]} 10. Nf3 {[%clk 0:02:07.7]} 10... Bc5 {[%clk 0:02:40.9]} 11.
Nbd2 {[%clk 0:02:06.8]} 11... Nxd2 {[%clk 0:02:37.7]} 12. Nxd2 {[%clk
0:02:07.7]} 12... Be6 {[%clk 0:02:35.5]} 13. Rad1 {[%clk 0:01:53.4]} 13... O-O-O
{[%clk 0:02:34]} 14. Nf3 {[%clk 0:01:43.2]} 14... Bf5 {[%clk 0:02:16.4]} 15.
Rxd8+ {[%clk 0:01:37.1]} 15... Rxd8 {[%clk 0:02:17.3]} 16. Rc1 {[%clk
0:01:36.5]} 16... Rd7 {[%clk 0:02:00.8]} 17. h3 {[%clk 0:01:33.6]} 17... Be4
{[%clk 0:01:59.6]} 18. Ne1 {[%clk 0:01:21.3]} 18... Bb4 {[%clk 0:01:57.8]} 19.
c3 {[%clk 0:01:22]} 19... Bd6 {[%clk 0:01:51.9]} 20. Rd1 {[%clk 0:01:22.7]}
20... Be5 {[%clk 0:01:47.8]} 21. Rxd7 {[%clk 0:01:21.7]} 21... Kxd7 {[%clk
0:01:48.7]} 22. f4 {[%clk 0:00:54.5]} 22... Bd6 {[%clk 0:01:45.4]} 23. g4 {[%clk
0:00:51]} 23... a5 {[%clk 0:01:40.5]} 24. h4 {[%clk 0:00:45.8]} 24... c5 {[%clk
0:01:35.8]} 25. g5 {[%clk 0:00:34.7]} 25... fxg5 {[%clk 0:01:27.3]} 26. hxg5
{[%clk 0:00:34.1]} 26... g6 {[%clk 0:01:28.2]} 27. Nd3 {[%clk 0:00:27.8]} 27...
Ke6 {[%clk 0:01:27.7]} 28. c4 {[%clk 0:00:25.6]} 28... b6 {[%clk 0:01:23.6]} 29.
a4 {[%clk 0:00:20.9]} 29... Kf5 {[%clk 0:00:52.7]} 30. Bg7 {[%clk 0:00:20.1]}
30... c6 {[%clk 0:00:42.8]} 31. Kd2 {[%clk 0:00:18.6]} 31... Ke6 {[%clk
0:00:34.1]} 32. Kc3 {[%clk 0:00:16.8]} 32... Kf7 {[%clk 0:00:32.9]} 33. Be5
{[%clk 0:00:14.2]} 33... Bxe5+ {[%clk 0:00:30.6]} 34. Nxe5+ {[%clk 0:00:14.2]}
34... Ke6 {[%clk 0:00:30.5]} 35. Ng4 {[%clk 0:00:13.3]} 35... Bf5 {[%clk
0:00:16.7]} 36. Nf2 {[%clk 0:00:11.4]} 36... Kf7 {[%clk 0:00:15.8]} 37. e4
{[%clk 0:00:10.3]} 37... Bd7 {[%clk 0:00:15.9]} 38. Nd3 {[%clk 0:00:10.3]} 38...
Ke6 {[%clk 0:00:15.8]} 39. Ne5 {[%clk 0:00:11.1]} 39... Be8 {[%clk 0:00:15.8]}
40. Ng4 {[%clk 0:00:11.3]} 40... Bf7 {[%clk 0:00:15]} 41. Kd3 {[%clk 0:00:09.6]}
41... Ke7 {[%clk 0:00:14.8]} 42. Ne5 {[%clk 0:00:09.6]} 42... Be8 {[%clk
0:00:15.1]} 43. Ng4 {[%clk 0:00:10.2]} 43... Kf8 {[%clk 0:00:15.1]} 44. Nf6
{[%clk 0:00:09.5]} 44... Bf7 {[%clk 0:00:14.6]} 45. Nxh7+ {[%clk 0:00:09.5]}
45... Ke7 {[%clk 0:00:15.5]} 46. Nf6 {[%clk 0:00:10.4]} 46... Kd6 {[%clk
0:00:15.9]} 47. Ng4 {[%clk 0:00:10.1]} 47... Be6 {[%clk 0:00:16.1]} 48. Ne3
{[%clk 0:00:09.5]} 48... Ke7 {[%clk 0:00:16.3]} 49. f5 {[%clk 0:00:09.5]} 49...
Bf7 {[%clk 0:00:16.7]} 50. f6+ {[%clk 0:00:06.3]} 50... Ke6 {[%clk 0:00:16.8]}
51. Ng4 {[%clk 0:00:06]} 51... Kd6 {[%clk 0:00:17.2]} 52. Ke3 {[%clk 0:00:06.5]}
52... Be6 {[%clk 0:00:17.3]} 53. Kf4 {[%clk 0:00:06.9]} 53... Kd7 {[%clk
0:00:16]} 54. Ne5+ {[%clk 0:00:07.2]} 54... Kd6 {[%clk 0:00:16.2]} 55. Nxg6
{[%clk 0:00:08.1]} 55... b5 {[%clk 0:00:16.5]} 56. e5+ {[%clk 0:00:08.3]} 56...
Kc7 {[%clk 0:00:16.6]} 57. Nf8 {[%clk 0:00:08.4]} 57... Bf7 {[%clk 0:00:12.3]}
58. g6 {[%clk 0:00:08.8]} 58... Bxc4 {[%clk 0:00:12]} 59. bxc4 {[%clk
0:00:08.7]} 59... bxa4 {[%clk 0:00:12.9]} 60. g7 {[%clk 0:00:08.8]} 60... a3
{[%clk 0:00:13.2]} 61. g8=Q {[%clk 0:00:09.5]} 61... a2 {[%clk 0:00:14.1]} 62.
Qg1 {[%clk 0:00:10.2]} 62... a1=Q {[%clk 0:00:14.4]} 63. Qxa1 {[%clk 0:00:10.8]}
1-0

[Event "Early-Titled-Tuesday-Blitz-May-28-2024"]
[Site "Chess.com"]
[Date "2024.05.28"]
[Round "4"]
[White "EgorYakovlev"]
[Black "salomez"]
[Result "1/2-1/2"]
[WhiteElo "2513"]
[BlackElo "2314"]
[TimeControl "180+1"]
[EndTime "8:40:43 PDT"]
[Termination "Game drawn by repetition"]

1. e4 {[%clk 0:02:52.9]} 1... c5 {[%clk 0:02:59.6]} 2. Nf3 {[%clk 0:02:52.1]}
2... e6 {[%clk 0:02:59.1]} 3. d4 {[%clk 0:02:50.4]} 3... cxd4 {[%clk 0:02:58.9]}
4. Nxd4 {[%clk 0:02:51.3]} 4... Nf6 {[%clk 0:02:59.4]} 5. Nc3 {[%clk 0:02:51.3]}
5... Nc6 {[%clk 0:03:00]} 6. Ndb5 {[%clk 0:02:51.4]} 6... d6 {[%clk 0:02:59.9]}
7. Bf4 {[%clk 0:02:50.4]} 7... e5 {[%clk 0:02:59.7]} 8. Bg5 {[%clk 0:02:50.7]}
8... a6 {[%clk 0:02:59.5]} 9. Bxf6 {[%clk 0:02:50.4]} 9... gxf6 {[%clk
0:02:57.9]} 10. Na3 {[%clk 0:02:50.8]} 10... b5 {[%clk 0:02:56.1]} 11. Nd5
{[%clk 0:02:50.5]} 11... Bg7 {[%clk 0:02:55.8]} 12. c3 {[%clk 0:02:50]} 12... f5
{[%clk 0:02:55.7]} 13. exf5 {[%clk 0:02:50.3]} 13... Bxf5 {[%clk 0:02:56.6]} 14.
Nc2 {[%clk 0:02:50.6]} 14... O-O {[%clk 0:02:55.6]} 15. Nce3 {[%clk 0:02:50.9]}
15... Be6 {[%clk 0:02:55.8]} 16. Bd3 {[%clk 0:02:48.6]} 16... f5 {[%clk
0:02:41.1]} 17. Qh5 {[%clk 0:02:46.8]} 17... e4 {[%clk 0:02:04.6]} 18. Bc2
{[%clk 0:02:39.7]} 18... Ra7 {[%clk 0:02:00.8]} 19. Nf4 {[%clk 0:02:22.4]} 19...
Bf7 {[%clk 0:01:41.6]} 20. Qxf5 {[%clk 0:02:12]} 20... Re7 {[%clk 0:00:41]} 21.
Qg4 {[%clk 0:01:54.3]} 21... Ne5 {[%clk 0:00:36.5]} 22. Qg3 {[%clk 0:01:50.9]}
22... Ng6 {[%clk 0:00:34.1]} 23. Nf5 {[%clk 0:01:42.9]} 23... Be5 {[%clk
0:00:20]} 24. Nxe7+ {[%clk 0:01:05.3]} 24... Qxe7 {[%clk 0:00:20.2]} 25. Nxg6
{[%clk 0:01:05.3]} 25... Bxg6 {[%clk 0:00:20.6]} 26. Qe3 {[%clk 0:01:02.6]}
26... b4 {[%clk 0:00:17.5]} 27. O-O {[%clk 0:00:52.1]} 27... bxc3 {[%clk
0:00:17.5]} 28. bxc3 {[%clk 0:00:51.6]} 28... Rc8 {[%clk 0:00:16.7]} 29. Rac1
{[%clk 0:00:48.4]} 29... Kg7 {[%clk 0:00:14.2]} 30. Bb3 {[%clk 0:00:41]} 30...
Qf6 {[%clk 0:00:12.9]} 31. Qh3 {[%clk 0:00:26.3]} 31... Rc7 {[%clk 0:00:11.5]}
32. Bd5 {[%clk 0:00:24.1]} 32... Bxc3 {[%clk 0:00:10.6]} 33. Qe6 {[%clk
0:00:20.4]} 33... Qxe6 {[%clk 0:00:09.2]} 34. Bxe6 {[%clk 0:00:21.3]} 34... Kf6
{[%clk 0:00:08.8]} 35. Bd5 {[%clk 0:00:20.6]} 35... Ke5 {[%clk 0:00:08.9]} 36.
Rfd1 {[%clk 0:00:21]} 36... Rc5 {[%clk 0:00:08.4]} 37. Bb3 {[%clk 0:00:20.5]}
37... d5 {[%clk 0:00:08.1]} 38. Kf1 {[%clk 0:00:20.5]} 38... d4 {[%clk
0:00:08.3]} 39. f3 {[%clk 0:00:13.2]} 39... d3 {[%clk 0:00:08.1]} 40. fxe4
{[%clk 0:00:13.1]} 40... Bxe4 {[%clk 0:00:09]} 41. Kf2 {[%clk 0:00:07.5]} 41...
Kd4 {[%clk 0:00:09.6]} 42. g4 {[%clk 0:00:06.8]} 42... d2 {[%clk 0:00:08.6]} 43.
Rb1 {[%clk 0:00:05.4]} 43... Bxb1 {[%clk 0:00:08.2]} 44. Rxb1 {[%clk 0:00:06.3]}
44... Kd3 {[%clk 0:00:08.3]} 45. Rd1 {[%clk 0:00:06.1]} 45... Re5 {[%clk
0:00:07.7]} 46. Kf3 {[%clk 0:00:05.2]} 46... Re1 {[%clk 0:00:07.3]} 47. h4
{[%clk 0:00:05.1]} 47... Re3+ {[%clk 0:00:07.2]} 48. Kf2 {[%clk 0:00:05.1]}
48... Bd4 {[%clk 0:00:06.3]} 49. Kf1 {[%clk 0:00:04.4]} 49... Rf3+ {[%clk
0:00:06]} 50. Kg2 {[%clk 0:00:04.1]} 50... Rf2+ {[%clk 0:00:06.3]} 51. Kg3
{[%clk 0:00:04.6]} 51... Re2 {[%clk 0:00:06.1]} 52. Kf3 {[%clk 0:00:04.6]} 52...
Re3+ {[%clk 0:00:05.9]} 53. Kg2 {[%clk 0:00:03.1]} 53... Kc3 {[%clk 0:00:05.8]}
54. Kf1 {[%clk 0:00:02.1]} 54... Kd3 {[%clk 0:00:05.2]} 55. g5 {[%clk
0:00:02.4]} 55... Bc3 {[%clk 0:00:05.5]} 56. Kf2 {[%clk 0:00:02.5]} 56... Bd4
{[%clk 0:00:05.5]} 57. Kf1 {[%clk 0:00:02.2]} 57... Bc3 {[%clk 0:00:05.2]} 58.
Kf2 {[%clk 0:00:02.5]} 58... Bd4 {[%clk 0:00:05.7]} 59. Kf1 {[%clk 0:00:02.8]}
1/2-1/2